[Event "Mitropa Cup Women 2019"]
[Site "Radenci"]
[Date "2019.05.29"]
[Round "3.5"]
[White "Medic, Mirjana"]
[Black "Gueci, Tea"]
[Result "1/2-1/2"]
[ECO "D38"]
[WhiteElo "2253"]
[BlackElo "2251"]
[Annotator "ChessBase"]
[PlyCount "131"]
[EventDate "2019.05.27"]
[EventType "team-tourn"]
[EventCountry "SLO"]
[SourceTitle "playchess.com"]
[Source "ChessBase"]
[SourceQuality "1"]
[WhiteTeam "Croatia"]
[BlackTeam "Italy"]
[WhiteTeamCountry "CRO"]
[BlackTeamCountry "ITA"]
[TimeControl "40/5400+30:1800+30"]

1. d4 {[%emt 0:00:00]} Nf6 {[%emt 0:00:00]} 2. c4 {[%emt 0:00:22]} e6 {[%emt 0:00:00]} 3. Nf3 {[%emt 0:01:21]} d5 {[%emt 0:00:00]} 4. Nc3 {[%emt 0:00:27]} Bb4 {[%emt 0:00:00]} 5. Qa4+ {[%emt 0:02:23]} Nc6 {[%emt 0:00:04]} 6. e3 {[%emt 0:00:06]} O-O {[%emt 0:00:19]} 7. Bd2 {[%emt 0:02:46]} Bd7 {[%emt 0:00:32]} 8. Qc2 {[%emt 0:00:44]} dxc4 {[%emt 0:03:06]} 9. Bxc4 {[%emt 0:00:11]} Re8 {[%emt 0:00:17]} 10. a3 {[%emt 0:04:42]} Bd6 {[%emt 0:04:14]} 11. h3 {[%emt 0:13:54]} a6 {[%emt 0:04:55]} 12. O-O {[%emt 0:02:29]} h6 {[%emt 0:03:58]} 13. Rfe1 {[%emt 0:07:32]} e5 {[%emt 0:09:08]} 14. d5 {[%emt 0:12:27]} Ne7 {[%emt 0:04:57]} 15. e4 {[%emt 0:02:21]} b5 {[%emt 0:03:26]} 16. Bf1 {[%emt 0:01:14]} c6 {[%emt 0:03:56]} 17. dxc6 {[%emt 0:01:00]} Bxc6 {[%emt 0:04:27]} 18. Rad1 {[%emt 0:00:41]} Qb8 {[%emt 0:02:55]} 19. Be3 {[%emt 0:02:14]} Rd8 {[%emt 0:04:40]} 20. Nd2 {[%emt 0:05:45]} Qb7 {[%emt 0:07:10]} 21. f3 {[%emt 0:00:16]} Rac8 {[%emt 0:01:24]} 22. Qb3 {[%emt 0:01:33]} Bb8 {[%emt 0:04:02]} 23. Ndb1 {[%emt 0:06:06]} Ba7 {[%emt 0:04:29]} 24. Ne2 {[%emt 0:04:11]} Bd7 {[%emt 0:04:36]} 25. Ng3 {[%emt 0:02:42]} Be6 {[%emt 0:02:00]} 26. Rxd8+ {[%emt 0:00:52]} Rxd8 {[%emt 0:00:09]} 27. Qc3 {[%emt 0:01:19]} Nc6 {[%emt 0:01:59]} 28. Bc5 {[%emt 0:01:38]} Bxc5+ {[%emt 0:03:35]} 29. Qxc5 {[%emt 0:00:02]} Nd7 {[%emt 0:00:24]} 30. Qe3 {[%emt 0:01:10]} Nd4 {[%emt 0:01:09]} 31. Rc1 {[%emt 0:00:37]} Rc8 {[%emt 0:03:15]} 32. Rxc8+ {[%emt 0:02:52]} Qxc8 {[%emt 0:00:12]} 33. Nc3 {[%emt 0:00:01]} Nb6 {[%emt 0:05:33]} 34. Qf2 {[%emt 0:02:06]} Nc4 {[%emt 0:02:04]} 35. Bxc4 {[%emt 0:01:13]} Qxc4 {[%emt 0:00:36]} 36. Nh5 {[%emt 0:00:35]} Qc5 {[%emt 0:08:11]} 37. Kh1 {[%emt 0:01:17]} f6 {[%emt 0:00:23]} 38. Ng3 {[%emt 0:05:29]} a5 {[%emt 0:02:09]} 39. Qd2 {[%emt 0:04:27]} b4 {[%emt 0:03:39]} 40. axb4 {[%emt 0:00:00]} axb4 {[%emt 0:00:00]} 41. Nd1 {[%emt 0:03:15]} Kf7 {[%emt 0:07:54]} 42. Ne3 {[%emt 0:03:17]} Nb3 {[%emt 0:04:50]} 43. Qe2 {[%emt 0:00:35]} Nc1 {[%emt 0:04:56]} 44. Qd2 {[%emt 0:01:23]} Nb3 {[%emt 0:00:16]} 45. Qe2 {[%emt 0:01:52]} g6 {[%emt 0:01:03]} 46. Ngf1 {[%emt 0:00:26]} Nd4 {[%emt 0:02:09]} 47. Qd2 {[%emt 0:04:43]} h5 {[%emt 0:01:45]} 48. h4 {[%emt 0:02:28]} b3 {[%emt 0:00:58]} 49. Kh2 {[%emt 0:01:11]} Nc2 {[%emt 0:03:26]} 50. Nd1 {[%emt 0:05:17]} Qd4 {[%emt 0:01:53]} 51. Qxd4 {[%emt 0:00:58]} exd4 {[%emt 0:00:13]} 52. Kg3 {[%emt 0:00:33]} Ke7 {[%emt 0:01:33]} 53. Kf4 {[%emt 0:01:31]} Ne1 {[%emt 0:02:23]} 54. g4 {[%emt 0:00:19]} hxg4 {[%emt 0:01:12]} 55. fxg4 {[%emt 0:00:02]} Bc4 {[%emt 0:02:47]} 56. Nd2 {[%emt 0:00:18]} Bd3 {[%emt 0:00:11]} 57. Nf2 {[%emt 0:02:44]} Bc2 {[%emt 0:00:24]} 58. h5 {[%emt 0:00:14]} g5+ {[%emt 0:02:22]} 59. Kg3 {[%emt 0:02:55]} Kf7 {[%emt 0:00:19]} 60. Kh2 {[%emt 0:01:49]} Kg7 {[%emt 0:00:44]} 61. Kg1 {[%emt 0:00:25]} Kf7 {[%emt 0:00:45]} 62. Kf1 {[%emt 0:00:08]} Nd3 {[%emt 0:00:02]} 63. Nxd3 {[%emt 0:00:07]} Bxd3+ {[%emt 0:00:01]} 64. Kf2 {[%emt 0:00:16]} Bc2 {[%emt 0:00:24]} 65. Ke2 {[%emt 0:06:37]} Kg7 {[%emt 0:01:00]} 66. Kf2 {[%emt 0:00:09]} 1/2-1/2

[Event "Mitropa Cup Women 2019"]
[Site "Radenci"]
[Date "2019.05.29"]
[Round "3.6"]
[White "Santeramo, Alessia"]
[Black "Cvitan, Ena"]
[Result "0-1"]
[ECO "B15"]
[WhiteElo "2074"]
[BlackElo "2132"]
[Annotator "NA"]
[PlyCount "86"]
[EventDate "2019.05.27"]
[EventType "team-tourn"]
[EventCountry "SLO"]
[SourceTitle "playchess.com"]
[Source "ChessBase"]
[SourceQuality "1"]
[WhiteTeam "Italy"]
[BlackTeam "Croatia"]
[WhiteTeamCountry "ITA"]
[BlackTeamCountry "CRO"]
[TimeControl "40/5400+30:1800+30"]

1. e4 {[%emt 0:00:00]} c6 {[%emt 0:00:00]} 2. d4 {[%emt 0:00:00]} d5 {[%emt 0:00:00]} 3. Nc3 {[%emt 0:00:00]} dxe4 {[%emt 0:00:00]} 4. Nxe4 {[%emt 0:00:00]} Nf6 {[%emt 0:00:03]} 5. Nxf6+ {[%emt 0:00:05]} exf6 {[%emt 0:00:06]} 6. c3 {[%emt 0:00:16]} Bd6 {[%emt 0:00:18]} 7. Bd3 {[%emt 0:00:18]} O-O {[%emt 0:00:21]} 8. Qc2 {[%emt 0:00:09]} Re8+ {[%emt 0:00:19] B15: Caro-Kann: 3 Nc3: 3...g6 and 3...dxe4 4 Nxe4 Nf6 5 Nxf6+ exf6} 9. Ne2 {[%emt 0:00:09]} (9. Be3 h6 10. Ne2 Na6 11. O-O Nc7 12. c4 Bg4 13. h3 Bxe2 14. Bxe2 Ne6 15. Rad1 Qc7 16. Bg4 Rad8 17. Rfe1 Bf4 18. Bxf4 Nxf4 19. Rxe8+ Rxe8 {½-½ (58) Svidler,P (2756)-Carlsen,M (2839) Porto Carras 2018}) 9... h5 {[%emt 0:00:28]} 10. Be3 {[%emt 0:00:19]} Nd7 {[%emt 0:00:32]} 11. O-O-O {[%emt 0:00:16]} Nf8 {[%emt 0:00:22]} 12. Kb1 {[%emt 0:00:28]} Be6 {[%emt 0:00:31]} 13. c4 $146 {[%emt 0:00:47]} ({Predecessor:} 13. Kc1) 13... Rc8 {[%emt 0:00:13]} 14. Nc3 {[%emt 0:02:14]} Bb4 {[%emt 0:01:11]} 15. Bd2 {[%emt 0:26:57]} b5 {[%emt 0:13:44]} 16. d5 {[%emt 0:18:31]} cxd5 {[%emt 0:15:20]} 17. Nxb5 {[%emt 0:00:42]} Bxd2 {[%emt 0:02:24]} (17... dxc4 $19 18. Be4 {[#]} c3 $1 {[%mdl 512]} 19. Nxc3 Qa5) 18. Rxd2 {[%emt 0:04:46]} Qb6 {[%emt 0:02:52]} 19. Na3 {[%emt 0:07:49]} Qb4 {[%emt 0:10:52]} 20. Qc3 {[%emt 0:10:58]} Qxc3 {[%emt 0:01:59]} 21. bxc3 {[%emt 0:00:01]} dxc4 {[%emt 0:00:42]} 22. Be2 {[%emt 0:03:39]} Rc5 {[%emt 0:02:07]} 23. Ka1 {[%emt 0:02:01]} Bd5 {[%emt 0:13:13]} 24. Rg1 {[%emt 0:07:08]} g6 $17 {[%emt 0:03:32]} 25. g3 {[%emt 0:02:01]} Nd7 {[%emt 0:06:20]} 26. Bxc4 {[%emt 0:09:50]} Bxc4 {[%emt 0:00:10]} 27. Nxc4 {[%emt 0:00:02]} Rxc4 {[%emt 0:00:57]} 28. Rxd7 {[%emt 0:00:02]} Re2 {[%emt 0:01:17]} 29. Rb1 {[%emt 0:02:27]} Rxc3 {[%emt 0:03:39]} 30. h4 {[%emt 0:02:20]} Rxf2 {[%emt 0:01:57]} 31. Rxa7 {[%emt 0:00:38]} Rxg3 {[%emt 0:01:33]} 32. Rb8+ {[%emt 0:00:35]} Kg7 {[%emt 0:00:12]} 33. a4 {[%emt 0:00:01]} Ra3+ {[%emt 0:01:52]} 34. Kb1 {[%emt 0:00:04]} Rh3 {[%emt 0:00:12]} 35. Rb2 {[%emt 0:01:24]} Rxb2+ {[%emt 0:02:48]} 36. Kxb2 {[%emt 0:00:01]} Rxh4 {[%emt 0:00:01]} 37. a5 {[%emt 0:00:49]} Re4 {[%emt 0:01:22]} 38. Rb7 {[%emt 0:00:00]} h4 {[%emt 0:01:19]} 39. Ka3 {[%emt 0:00:59]} h3 {[%emt 0:01:51]} 40. Rb3 {[%emt 0:00:00]} h2 {[%emt 0:00:00]} 41. Rb1 {[%emt 0:05:34]} g5 {[%emt 0:02:29]} 42. Rh1 {[%emt 0:00:37]} Re2 {[%emt 0:00:49]} 43. a6 {[%emt 0:00:07]} Re6 {[%emt 0:00:17]} 0-1

[Event "Mitropa Cup Women 2019"]
[Site "Radenci"]
[Date "2019.05.29"]
[Round "3.7"]
[White "Blazeka, Mihaela"]
[Black "Palma, Maria"]
[Result "1-0"]
[ECO "B27"]
[WhiteElo "2118"]
[BlackElo "2018"]
[Annotator "NA"]
[PlyCount "61"]
[EventDate "2019.05.27"]
[EventType "team-tourn"]
[EventCountry "SLO"]
[SourceTitle "playchess.com"]
[Source "ChessBase"]
[SourceQuality "1"]
[WhiteTeam "Croatia"]
[BlackTeam "Italy"]
[WhiteTeamCountry "CRO"]
[BlackTeamCountry "ITA"]
[TimeControl "40/5400+30:1800+30"]

1. e4 {[%emt 0:00:19]} c5 {[%emt 0:00:00]} 2. Nf3 {[%emt 0:00:13]} g6 {[%emt 0:00:00]} 3. Bc4 {[%emt 0:00:47]} Bg7 {[%emt 0:02:12]} 4. O-O {[%emt 0:00:21]} Nc6 {[%emt 0:04:48]} 5. c3 {[%emt 0:00:18]} e6 {[%emt 0:09:17]} 6. d4 {[%emt 0:00:27]} cxd4 {[%emt 0:03:35]} 7. Nxd4 {[%emt 0:00:15]} Nxd4 {[%emt 0:07:43]} 8. cxd4 {[%emt 0:00:10]} d5 {[%emt 0:13:37]} 9. exd5 {[%emt 0:01:27]} exd5 {[%emt 0:00:07]} 10. Re1+ {[%emt 0:12:37]} Be6 {[%emt 0:04:24]} 11. Bb5+ {[%emt 0:00:12]} Kf8 {[%emt 0:00:16]} 12. Qf3 {[%emt 0:19:03]} Bf6 {[%emt 0:11:24]} 13. Nc3 {[%emt 0:07:46]} Kg7 {[%emt 0:02:09]} 14. Bf4 {[%emt 0:01:59]} h5 {[%emt 0:07:51]} 15. Ba4 {[%emt 0:22:21]} Bxd4 {[%emt 0:11:49]} 16. Rad1 {[%emt 0:00:31]} Bg4 {[%emt 0:08:29]} 17. Qd3 {[%emt 0:00:26]} Bf6 {[%emt 0:00:33]} 18. Re8 {[%emt 0:07:21]} Qxe8 {[%emt 0:02:20]} 19. Bxe8 {[%emt 0:00:23]} Bxd1 {[%emt 0:00:28]} 20. Bxf7 {[%emt 0:00:24]} Kxf7 {[%emt 0:03:53]} 21. Qxd5+ {[%emt 0:00:12]} Kg7 {[%emt 0:00:23]} 22. Qxb7+ {[%emt 0:02:30]} Ne7 {[%emt 0:00:01]} 23. Nxd1 {[%emt 0:00:23]} g5 {[%emt 0:01:29]} 24. Be5 {[%emt 0:01:10]} Rhe8 {[%emt 0:02:09]} 25. Bxf6+ {[%emt 0:02:46]} Kxf6 {[%emt 0:00:01]} 26. Ne3 {[%emt 0:00:14]} Rab8 {[%emt 0:01:12]} 27. Qxa7 {[%emt 0:00:24]} Red8 {[%emt 0:01:16]} 28. b3 {[%emt 0:01:49]} Nf5 {[%emt 0:00:48]} 29. h3 {[%emt 0:04:20]} Ra8 {[%emt 0:00:52]} 30. Qb6+ {[%emt 0:01:35]} Rd6 {[%emt 0:00:05]} 31. Qc5 {[%emt 0:00:00]} 1-0

[Event "Mitropa Cup Women 2019"]
[Site "Radenci"]
[Date "2019.05.29"]
[Round "3.8"]
[White "Andolfatto, Maria"]
[Black "Spiranec, Noemi"]
[Result "1/2-1/2"]
[ECO "E03"]
[WhiteElo "2041"]
[BlackElo "2009"]
[Annotator "NA"]
[PlyCount "126"]
[EventDate "2019.05.27"]
[EventType "team-tourn"]
[EventCountry "SLO"]
[SourceTitle "playchess.com"]
[Source "ChessBase"]
[SourceQuality "1"]
[WhiteTeam "Italy"]
[BlackTeam "Croatia"]
[WhiteTeamCountry "ITA"]
[BlackTeamCountry "CRO"]
[TimeControl "40/5400+30:1800+30"]

1. Nf3 {[%emt 0:00:00]} Nf6 {[%emt 0:00:00]} 2. c4 {[%emt 0:00:00]} e6 {[%emt 0:00:00]} 3. g3 {[%emt 0:00:10]} d5 {[%emt 0:00:32]} 4. Bg2 {[%emt 0:00:10]} dxc4 {[%emt 0:00:09]} 5. Qa4+ {[%emt 0:01:02]} Nbd7 {[%emt 0:00:31]} 6. Qxc4 {[%emt 0:00:38]} a6 {[%emt 0:01:23]} 7. Qc2 {[%emt 0:01:56]} c5 {[%emt 0:00:09]} 8. d4 {[%emt 0:04:12]} cxd4 {[%emt 0:14:39]} 9. Nxd4 {[%emt 0:03:16]} Bb4+ {[%emt 0:00:12]} 10. Bd2 {[%emt 0:01:52]} Bxd2+ {[%emt 0:00:10]} 11. Nxd2 {[%emt 0:00:46]} O-O {[%emt 0:00:46]} 12. O-O {[%emt 0:01:06]} Rb8 {[%emt 0:17:20]} 13. Rac1 {[%emt 0:10:00]} Nb6 {[%emt 0:03:43]} 14. N2b3 {[%emt 0:08:36]} e5 {[%emt 0:06:26]} 15. Nf5 {[%emt 0:06:48]} g6 {[%emt 0:01:03]} 16. Ne3 {[%emt 0:01:08]} Be6 {[%emt 0:03:09]} 17. Rfd1 {[%emt 0:09:28]} Qe7 {[%emt 0:00:52]} 18. Qc7 {[%emt 0:01:24]} Qxc7 {[%emt 0:00:13]} 19. Rxc7 {[%emt 0:00:03]} Na4 {[%emt 0:00:21]} 20. Rxb7 {[%emt 0:07:35]} Nxb2 {[%emt 0:02:16]} 21. Rd6 {[%emt 0:01:36]} Na4 {[%emt 0:11:08]} 22. Rxa6 {[%emt 0:05:57]} Nc3 {[%emt 0:02:04]} 23. Kf1 {[%emt 0:13:20]} Rxb7 {[%emt 0:11:03]} 24. Bxb7 {[%emt 0:00:13]} Rb8 {[%emt 0:00:07]} 25. Ra8 {[%emt 0:11:43]} Rxa8 {[%emt 0:00:06]} 26. Bxa8 {[%emt 0:00:04]} Nxa2 {[%emt 0:00:08]} 27. Nc5 {[%emt 0:00:37]} Bh3+ {[%emt 0:00:51]} 28. Ke1 {[%emt 0:02:01]} Nb4 {[%emt 0:04:25]} 29. Nc4 {[%emt 0:01:46]} e4 {[%emt 0:10:50]} 30. Ne3 {[%emt 0:04:16]} Nd7 {[%emt 0:03:42]} 31. Nxe4 {[%emt 0:00:40]} Be6 {[%emt 0:02:36]} 32. Bb7 {[%emt 0:02:06]} h6 {[%emt 0:01:59]} 33. Bc8 {[%emt 0:01:09]} Kf8 {[%emt 0:00:44]} 34. Kd2 {[%emt 0:00:46]} Ke7 {[%emt 0:00:33]} 35. Bb7 {[%emt 0:00:32]} f5 {[%emt 0:00:35]} 36. Nc3 {[%emt 0:00:21]} Nc5 {[%emt 0:00:51]} 37. Bf3 {[%emt 0:00:21]} Nb3+ {[%emt 0:01:07]} 38. Ke1 {[%emt 0:00:28]} Nd4 {[%emt 0:00:45]} 39. Ned5+ {[%emt 0:00:39]} Nxd5 {[%emt 0:00:08]} 40. Bxd5 {[%emt 0:00:00]} Bd7 {[%emt 0:00:00]} 41. e3 {[%emt 0:12:22]} Nb5 {[%emt 0:06:27]} 42. Nxb5 {[%emt 0:01:02]} Bxb5 {[%emt 0:00:02]} 43. Kd2 {[%emt 0:00:22]} g5 {[%emt 0:01:06]} 44. Kc3 {[%emt 0:01:28]} Kf6 {[%emt 0:02:29]} 45. Kd4 {[%emt 0:01:18]} g4 {[%emt 0:07:10]} 46. Bb7 {[%emt 0:08:15]} Bf1 {[%emt 0:00:26]} 47. Bc6 {[%emt 0:02:14]} Ke6 {[%emt 0:02:49]} 48. Bb7 {[%emt 0:01:08]} Kf6 {[%emt 0:00:22]} 49. Bd5 {[%emt 0:01:01]} Bh3 {[%emt 0:01:03]} 50. e4 {[%emt 0:01:42]} fxe4 {[%emt 0:00:05]} 51. Bxe4 {[%emt 0:01:53]} Bf1 {[%emt 0:00:21]} 52. Ke3 {[%emt 0:00:39]} Kg5 {[%emt 0:00:23]} 53. Bc6 {[%emt 0:00:58]} Kf5 {[%emt 0:01:29]} 54. Bd7+ {[%emt 0:00:44]} Kg5 {[%emt 0:00:06]} 55. h4+ {[%emt 0:03:01]} gxh3 {[%emt 0:00:06]} 56. f4+ {[%emt 0:00:04]} Kf6 {[%emt 0:00:12]} 57. Kf2 {[%emt 0:00:25]} h2 {[%emt 0:01:40]} 58. Bc6 {[%emt 0:00:15]} Bh3 {[%emt 0:00:11]} 59. Be4 {[%emt 0:01:21]} h5 {[%emt 0:00:48]} 60. Bh1 {[%emt 0:00:29]} Kf5 {[%emt 0:00:25]} 61. Bb7 {[%emt 0:00:27]} Kf6 {[%emt 0:00:06]} 62. Bc6 {[%emt 0:00:30]} Bd7 {[%emt 0:00:16]} 63. Bf3 {[%emt 0:00:19]} Bg4 {[%emt 0:00:11]} 1/2-1/2

[Event "Mitropa Cup Women 2019"]
[Site "Radenci"]
[Date "2019.05.29"]
[Round "3.9"]
[White "Navrotescu, Andreea-Cristiana"]
[Black "Georgescu, Lena"]
[Result "1-0"]
[ECO "E46"]
[WhiteElo "2233"]
[BlackElo "2191"]
[Annotator "ChessBase"]
[PlyCount "145"]
[EventDate "2019.05.27"]
[EventType "team-tourn"]
[EventCountry "SLO"]
[SourceTitle "playchess.com"]
[Source "ChessBase"]
[SourceQuality "1"]
[WhiteTeam "France"]
[BlackTeam "Switzerland"]
[WhiteTeamCountry "FRA"]
[BlackTeamCountry "SUI"]
[TimeControl "40/5400+30:1800+30"]

1. d4 {[%emt 0:00:00]} Nf6 {[%emt 0:00:00]} 2. c4 {[%emt 0:00:00]} e6 {[%emt 0:00:00]} 3. Nc3 {[%emt 0:00:00]} Bb4 {[%emt 0:00:00]} 4. e3 {[%emt 0:00:00]} O-O {[%emt 0:00:00]} 5. Nge2 {[%emt 0:00:00]} d5 {[%emt 0:00:09]} 6. a3 {[%emt 0:00:08]} Bd6 {[%emt 0:00:06]} 7. Ng3 {[%emt 0:00:40]} c5 {[%emt 0:01:36]} 8. dxc5 {[%emt 0:02:39]} Bxc5 {[%emt 0:00:17]} 9. b4 {[%emt 0:01:08]} Be7 {[%emt 0:00:23]} 10. Bb2 {[%emt 0:01:14]} a5 {[%emt 0:02:32]} 11. b5 {[%emt 0:01:39]} dxc4 {[%emt 0:05:00]} 12. Bxc4 {[%emt 0:04:45]} Nbd7 {[%emt 0:01:29]} 13. O-O {[%emt 0:02:26]} Nb6 {[%emt 0:03:17]} 14. Ba2 {[%emt 0:09:56]} Qxd1 {[%emt 0:07:54]} 15. Rfxd1 {[%emt 0:03:12]} Bd7 {[%emt 0:03:42]} 16. a4 {[%emt 0:06:32]} Rfd8 {[%emt 0:07:44]} 17. Bb3 {[%emt 0:05:56]} Rac8 {[%emt 0:05:21]} 18. Rac1 {[%emt 0:10:45]} Be8 {[%emt 0:09:44]} 19. Rxd8 {[%emt 0:02:47]} Bxd8 {[%emt 0:06:00]} 20. Rd1 {[%emt 0:02:01]} Be7 {[%emt 0:08:49]} 21. Nge4 {[%emt 0:05:27]} Kf8 {[%emt 0:11:17]} 22. h3 {[%emt 0:01:53]} Nc4 {[%emt 0:05:44]} 23. Ba1 {[%emt 0:00:29]} h5 {[%emt 0:08:53]} 24. Kf1 {[%emt 0:01:04]} Nxe4 {[%emt 0:05:14]} 25. Nxe4 {[%emt 0:00:01]} Bb4 {[%emt 0:03:03]} 26. Ke2 {[%emt 0:00:24]} Ba3 {[%emt 0:03:15]} 27. Rd3 {[%emt 0:06:09]} Bb4 {[%emt 0:00:30]} 28. f4 {[%emt 0:03:21]} Nb6 {[%emt 0:01:21]} 29. Nd6 {[%emt 0:03:34]} Bxd6 {[%emt 0:00:20]} 30. Rxd6 {[%emt 0:00:02]} Nd5 {[%emt 0:00:37]} 31. Bb2 {[%emt 0:04:04]} Ke7 {[%emt 0:00:33]} 32. Ba3 {[%emt 0:00:01]} Nc3+ {[%emt 0:00:38]} 33. Kf3 {[%emt 0:00:16]} Nb1 {[%emt 0:00:29]} 34. Rxe6+ {[%emt 0:00:09]} Kd8 {[%emt 0:00:28]} 35. Rd6+ {[%emt 0:01:31]} Kc7 {[%emt 0:00:19]} 36. b6+ {[%emt 0:00:14]} Kb8 {[%emt 0:00:19]} 37. Bb2 {[%emt 0:00:09]} f6 {[%emt 0:00:34]} 38. Rd1 {[%emt 0:00:38]} Nc3 {[%emt 0:00:21]} 39. Rd4 {[%emt 0:05:24]} Bc6+ {[%emt 0:00:23]} 40. Kf2 {[%emt 0:00:00]} Nxa4 {[%emt 0:00:00]} 41. Bxa4 {[%emt 0:09:13]} Bxa4 {[%emt 0:00:39]} 42. Ba3 {[%emt 0:00:09]} Bc6 {[%emt 0:05:32]} 43. Bd6+ {[%emt 0:00:36]} Ka8 {[%emt 0:00:03]} 44. Bc7 {[%emt 0:00:18]} Re8 {[%emt 0:05:13]} 45. e4 {[%emt 0:08:17]} Bxe4 {[%emt 0:01:14]} 46. Ra4 {[%emt 0:00:18]} Bd3 {[%emt 0:00:09]} 47. Rxa5+ {[%emt 0:00:05]} Ba6 {[%emt 0:00:04]} 48. Rxh5 {[%emt 0:00:08]} g6 {[%emt 0:02:14]} 49. Rd5 {[%emt 0:01:02]} Bc4 {[%emt 0:00:24]} 50. Rd6 {[%emt 0:00:22]} Rf8 {[%emt 0:00:36]} 51. g4 {[%emt 0:01:00]} f5 {[%emt 0:00:31]} 52. Rxg6 {[%emt 0:00:32]} fxg4 {[%emt 0:00:04]} 53. hxg4 {[%emt 0:00:21]} Bd3 {[%emt 0:00:26]} 54. Rg7 {[%emt 0:00:29]} Be4 {[%emt 0:00:39]} 55. Kg3 {[%emt 0:00:26]} Re8 {[%emt 0:01:00]} 56. Rd7 {[%emt 0:00:34]} Bf5 {[%emt 0:00:19]} 57. Rd5 {[%emt 0:01:29]} Bd3 {[%emt 0:01:45]} 58. Bd8 {[%emt 0:01:22]} Bc4 {[%emt 0:01:15]} 59. Rc5 {[%emt 0:00:52]} Be6 {[%emt 0:01:09]} 60. Ra5+ {[%emt 0:03:43]} Kb8 {[%emt 0:00:05]} 61. Bc7+ {[%emt 0:00:17]} Kc8 {[%emt 0:00:05]} 62. f5 {[%emt 0:00:07]} Bf7 {[%emt 0:02:58]} 63. g5 {[%emt 0:00:37]} Kd7 {[%emt 0:01:07]} 64. Kf4 {[%emt 0:01:16]} Rg8 {[%emt 0:00:39]} 65. Ra3 {[%emt 0:00:19]} Rf8 {[%emt 0:00:25]} 66. Ke5 {[%emt 0:01:01]} Rg8 {[%emt 0:02:09]} 67. Kf6 {[%emt 0:00:18]} Be8 {[%emt 0:00:33]} 68. Rd3+ {[%emt 0:00:17]} Kc6 {[%emt 0:00:11]} 69. Rd8 {[%emt 0:01:34]} Rf8+ {[%emt 0:00:17]} 70. Ke5 {[%emt 0:00:17]} Rh8 {[%emt 0:00:42]} 71. g6 {[%emt 0:00:27]} Rh1 {[%emt 0:00:15]} 72. Kf6 {[%emt 0:03:03]} Bd7 {[%emt 0:00:45]} 73. g7 {[%emt 0:00:13]} 1-0

[Event "Mitropa Cup Women 2019"]
[Site "Radenci"]
[Date "2019.05.29"]
[Round "3.10"]
[White "Hund, Barbara"]
[Black "Afraoui, Anaelle"]
[Result "0-1"]
[ECO "B23"]
[WhiteElo "2127"]
[BlackElo "2068"]
[Annotator "ChessBase"]
[PlyCount "104"]
[EventDate "2019.05.27"]
[EventType "team-tourn"]
[EventCountry "SLO"]
[SourceTitle "playchess.com"]
[Source "ChessBase"]
[SourceQuality "1"]
[WhiteTeam "Switzerland"]
[BlackTeam "France"]
[WhiteTeamCountry "SUI"]
[BlackTeamCountry "FRA"]
[TimeControl "40/5400+30:1800+30"]

1. e4 {[%emt 0:00:00]} c5 {[%emt 0:00:00]} 2. Nc3 {[%emt 0:00:00]} Nc6 {[%emt 0:00:00]} 3. f4 {[%emt 0:00:00]} e6 {[%emt 0:00:00]} 4. Nf3 {[%emt 0:00:15]} d5 {[%emt 0:00:00]} 5. Bb5 {[%emt 0:03:36]} Nge7 {[%emt 0:00:11]} 6. O-O {[%emt 0:00:34]} a6 {[%emt 0:00:51]} 7. Bxc6+ {[%emt 0:00:34]} Nxc6 {[%emt 0:00:10]} 8. a4 {[%emt 0:03:44]} Be7 {[%emt 0:02:36]} 9. d3 {[%emt 0:02:21]} O-O {[%emt 0:01:48]} 10. Ne5 {[%emt 0:07:53]} Nxe5 {[%emt 0:12:12]} 11. fxe5 {[%emt 0:00:14]} dxe4 {[%emt 0:00:16]} 12. dxe4 {[%emt 0:00:19]} Qd4+ {[%emt 0:01:28]} 13. Qxd4 {[%emt 0:05:46]} cxd4 {[%emt 0:00:07]} 14. Nd1 {[%emt 0:02:46]} Bd7 {[%emt 0:03:56]} 15. c3 {[%emt 0:13:36]} Bc5 {[%emt 0:05:28]} 16. Kh1 {[%emt 0:00:28]} Bc6 {[%emt 0:01:07]} 17. Re1 {[%emt 0:04:35]} Rfd8 {[%emt 0:03:46]} 18. Bd2 {[%emt 0:08:37]} dxc3 {[%emt 0:05:58]} 19. Bxc3 {[%emt 0:00:20]} Rd3 {[%emt 0:00:22]} 20. h3 {[%emt 0:05:02]} Rad8 {[%emt 0:03:13]} 21. Kh2 {[%emt 0:02:03]} Kf8 {[%emt 0:09:38]} 22. Rf1 {[%emt 0:07:42]} Ke8 {[%emt 0:06:17]} 23. a5 {[%emt 0:05:25]} Bxe4 {[%emt 0:06:43]} 24. Nf2 {[%emt 0:02:40]} Re3 {[%emt 0:01:52]} 25. Nxe4 {[%emt 0:00:25]} Rxe4 {[%emt 0:00:05]} 26. Rf3 {[%emt 0:01:35]} Bd4 {[%emt 0:03:16]} 27. Raf1 {[%emt 0:02:50]} Rd7 {[%emt 0:03:07]} 28. Bxd4 {[%emt 0:02:35]} Rexd4 {[%emt 0:00:08]} 29. Rc1 {[%emt 0:01:52]} R4d5 {[%emt 0:01:33]} 30. Rc8+ {[%emt 0:01:13]} Ke7 {[%emt 0:01:10]} 31. Rh8 {[%emt 0:00:52]} g6 {[%emt 0:05:42]} 32. Rxh7 {[%emt 0:02:38]} Kf8 {[%emt 0:00:15]} 33. b4 {[%emt 0:01:00]} Rxe5 {[%emt 0:00:50]} 34. Rh4 {[%emt 0:02:21]} Red5 {[%emt 0:01:32]} 35. Re4 {[%emt 0:02:20]} Kg7 {[%emt 0:00:32]} 36. g4 {[%emt 0:00:17]} Rd4 {[%emt 0:01:08]} 37. Rfe3 {[%emt 0:00:25]} Rxe4 {[%emt 0:00:16]} 38. Rxe4 {[%emt 0:00:02]} Rd3 {[%emt 0:00:25]} 39. h4 {[%emt 0:02:11]} Rb3 {[%emt 0:03:02]} 40. g5 {[%emt 0:00:00]} Kf8 {[%emt 0:00:00]} 41. Rc4 {[%emt 0:01:27]} Kg7 {[%emt 0:02:26]} 42. Re4 {[%emt 0:01:11]} Rd3 {[%emt 0:00:19]} 43. Rc4 {[%emt 0:00:25]} Rd5 {[%emt 0:05:04]} 44. Kg3 {[%emt 0:02:38]} Kf8 {[%emt 0:00:23]} 45. Kg4 {[%emt 0:04:05]} Ke7 {[%emt 0:01:30]} 46. h5 {[%emt 0:01:32]} gxh5+ {[%emt 0:00:21]} 47. Kxh5 {[%emt 0:00:01]} e5 {[%emt 0:00:49]} 48. g6 {[%emt 0:04:50]} fxg6+ {[%emt 0:00:29]} 49. Kxg6 {[%emt 0:00:08]} Ke6 {[%emt 0:00:09]} 50. Rc8 {[%emt 0:07:55]} Rb5 {[%emt 0:00:46]} 51. Re8+ {[%emt 0:00:11]} Kd5 {[%emt 0:00:04]} 52. Kf5 {[%emt 0:00:18]} Kc4 {[%emt 0:00:19]} 0-1